Workbook

Sheet Introduction
B3: KSU-Feeder Cattle Risk Management Tool
B5: An Excel spreadsheet for evaluating feeder cattle risk management strategies
L8: Version- 2.11.2023
B28: INTRODUCTION
B29: This spreadsheet was developed as a decision-aid tool for producers interested in managing feeder cattle price risk. It can be used to compare the Expected Net Selling Price using alternative risk management tools available for pricing feeder cattle.
B31: INSTRUCTIONS FOR THE USER:
B32: Be sure to "Enable Content" and "Enable Macros" for the spreadsheet to function correctly.
B33: In the Comparison sheet all blue numbers are input by the user. All black numbers are calculated using data provided by the user. The spreadsheet automatically recalculates every time an additional input is entered. Thus, it is important to wait until all data have been entered and reviewed before interpreting any of the calculated results (i.e., black numbers). Most of the input cells (i.e., blue number) have a red diamond in the upper right hand corner of the cell. By moving your mouse cursor over this diamond, a brief description of the input will be displayed on the screen.
B40: FOR MORE INFORMATION:
B41: To learn more about managing price risk and using LRP insurance visit www.AgManager.info or click on the following links:
C42: LRP Insurance Information | I42: Price Risk Management Information
B43: Updated by:
B45: Glynn T. Tonsor, Ph.D.
B46: Agricultural Economist
B47: Department of Agricultural Economics
B48: Kansas State University
B49: gtonsor@k-state.edu
B50: 785-532-1518
B52: ACKNOWLEDGEMENTS:
B53: This spreadsheet was originally developed by Kevin Dhuyvetter, Ph.D., Agricultural Economist, Kanasas State University. The authors gratefully acknowledge funding provided by USDA's Risk Management Agency (RMA) for initial development of this feeder cattle risk management tool.
B55: Copyright 2023 AgManager.info, K-State Department of Agricultural Economics

Sheet Comparison
B2: Comparison of Alternative Risk Management Strategies for Pricing Feeder Cattle
B4: Current date | H4: 2023-02-11 | L4: Futures | M4: LRP | N4: Put
B5: ="Number of head (number of head to match futures contract = "&FIXED(L117/H6,0)&")" -> Number of head (number of head to match futures contract = 91) | H5: 90 | J5: Number of contracts | L5: 1 | M5: 90 | N5: 1
B6: ="Expected weight at time of sale, lbs/head -- "&IF(H6<L115,"(use weight 1 for LRP)","(use weight 2 for LRP)") -> Expected weight at time of sale, lbs/head -- (use weight 1 for LRP) | H6: 550 | J6: Strike price(s), $/cwt | M6: 225.38 | N6: 204
B7: Pounds of cattle expected to sell in cash market, lbs | H7: =H5*H6 -> 49500 | J7: Premium, $/cwt | M7: =VLOOKUP(M6,B105:D117,3,1) -> 4.06 | N7: =VLOOKUP(N6,B22:D34,2,1) -> 3.95
B8: Expected sale date | H8: 2023-10-18 | M8: =IF(M5>H5,"Cannot buy LRP for more cattle than owned!","") -> 
B9: Feeder cattle type | H9: Steers | K9: Expected Net Selling Prices
J10: Futures
B11: CME futures contract for hedging (Jan, Mar, Apr, May, Aug, Sep, Oct, Nov) | H11: Oct | J11: price | K11: Cash | L11: Hedge | M11: LRP | N11: Put
B12: Commission for roundtrip (sell and buy) futures trade, $/contract | H12: 75 | J12: 180 | K12: =J12+H$15 -> 216.21 | L12: =IF(L$5=0,"n/a",(K12/100*H$7+((H$14-J12)*L$117/100-H$12)*L$5)/H$7*100) -> 249.0887879 | M12: =IF(OR(M$5=0,M$5>H$5),"n/a",(K12/100*H$7-M$7*H$6/100*M$5+IF(M$6>J12*L$113,(M$6-J12*L$113)*H$6/100*M$5,0))/H$7*100) -> 239.53 | N12: =IF(N$5=0,"n/a",(K12/100*H$7-(N$7*L$117/100+H$13)*N$5+IF(N$6>J12,((N$6-J12)*L$117/100-H$13)*N$5))/H$7*100) -> 236.3009091 | Q12: =MAX(K12:P12) -> 249.0887879
B13: Commission to buy or sell options contract, $/contract | H13: 40 | J13: =+J12+J$21 -> 185 | K13: 221.21 | L13: 249.0382828 | M13: =IF(OR(M$5=0,M$5>H$5),"n/a",(K13/100*H$7-M$7*H$6/100*M$5+IF(M$6>J13*L$113,(M$6-J13*L$113)*H$6/100*M$5,0))/H$7*100) -> 239.03 | N13: =IF(N$5=0,"n/a",(K13/100*H$7-(N$7*L$117/100+H$13)*N$5+IF(N$6>J13,((N$6-J13)*L$117/100-H$13)*N$5))/H$7*100) -> 236.250404 | Q13: =MAX(K13:P13) -> 249.0382828
B14: ="Futures price -- "&H11&" CME feeder cattle contract, $/cwt*" -> Futures price -- Oct CME feeder cattle contract, $/cwt* | H14: 212.7 | J14: 190 | K14: 226.21 | L14: 248.9877778 | M14: 238.53 | N14: 236.199899 | Q14: 248.9877778
B15: ="Expected basis (cash - "&H11&" CME futures), $/cwt#" -> Expected basis (cash - Oct CME futures), $/cwt# | H15: 36.21 | J15: 195 | K15: 231.21 | L15: 248.9372727 | M15: 238.03 | N15: 236.1493939 | Q15: 248.9372727
B16: LRP expected ending value for relevant time period^ | H16: 232.75 | J16: 200 | K16: 236.21 | L16: 248.8867677 | M16: 237.53 | N16: 236.0988889 | Q16: 248.8867677
B17: End date for LRP contract | H17: 2023-10-06 | J17: 205 | K17: 241.21 | L17: 248.8362626 | M17: 237.15 | N17: 237.1392929 | Q17: 248.8362626
J18: 210 | K18: 246.21 | L18: 248.7857576 | M18: 242.15 | N18: 242.1392929 | Q18: 248.7857576
B19: CME feeder cattle option premiums | F19: LRP coverage levels and premiums | J19: 215 | K19: 251.21 | L19: 248.7352525 | M19: 247.15 | N19: 247.1392929 | Q19: 251.21
B20: Strike price | C20: Put | D20: Call | F20: Coverage Level | H20: LRP cost | J20: 220 | K20: 256.21 | L20: 248.6847475 | M20: 252.15 | N20: 252.1392929 | Q20: 256.21
B21: $/cwt | C21: $/cwt | D21: $/cwt | F21: $/cwt | G21: -%- | H21: $/cwt | J21: 5 | K21: <= futures price increment | O21: Signifies maximum price in row
B22: =B23-2 -> 202 | F22: 231.98 | G22: =F22/H$16 -> 0.9966917293 | H22: 6.26
B23: 204 | C23: 3.95 | D23: 12.8 | F23: =ROUND(F22-M$113,3) -> 229.78 | G23: =F23/H$16 -> 0.9872395274 | H23: 5.45 | K23: Cash | L23: Futures Hedge | M23: ="LRP, ($"&FIXED(M6,0)&")" -> LRP, ($225) | N23: ="Put, ($"&FIXED(N6,0)&")" -> Put, ($204) | O23: ="Hedge & Call, ($"&FIXED(O6,0)&")" -> Hedge & Call, ($0) | P23: ="Put & Call, ($"&FIXED(P6,0)&"/$"&FIXED(Q6,0)&")" -> Put & Call, ($0/$0)
B24: 206 | C24: 4.625 | D24: 11.5 | F24: =ROUND(F23-M$113,3) -> 227.58 | G24: 0.9777873255 | H24: 4.71
B25: 208 | C25: 5.35 | D25: 10.3 | F25: 225.38 | G25: 0.9683351235 | H25: 4.06
B26: 210 | C26: 6.2 | D26: 9.175 | F26: 223.18 | G26: 0.9588829216 | H26: 3.49
B27: 212 | C27: 7.125 | D27: 8.15 | F27: 220.98 | G27: 0.9494307197 | H27: 2.74
B28: =EVEN(ROUND(H14,0)) -> 214 | C28: 8.15 | D28: 7.225 | F28: 218.78 | G28: 0.9399785177 | H28: 2.32
B29: =B28+2 -> 216 | C29: 9.25 | D29: 6.375 | F29: 216.58 | G29: 0.9305263158 | H29: 1.96
B30: 218 | C30: 10.425 | D30: 5.6 | F30: 214.38 | G30: 0.9210741139 | H30: 1.66
B31: 220 | C31: 11.7 | D31: 4.925 | F31: 212.18 | G31: 0.9116219119 | H31: 1.39
B32: 222 | C32: 13.05 | D32: 4.325 | F32: 209.98 | G32: 0.90216971
B33: 224 | F33: 207.78 | G33: 0.8927175081
B34: 226 | F34: =ROUND(F33-M$113,3) -> 205.58 | G34: 0.8832653061
B36: # Websites with information on feeder cattle basis
B37: http://www.agmanager.info/livestock/marketing/graphs/
B38: http://www.beefbasis.com/
B39: * Website with futures prices and option premium quotes
B40: https://www.cmegroup.com/markets/agriculture/livestock/feeder-cattle.quotes.html
B41: ^ Website with LRP coverage levels and premiums
B42: https://www.rma.usda.gov/en/Information-Tools/Livestock-Reports
B44: FeederCattleRiskMgmtTool.xls
F45: Updated by: | G45: Glynn T. Tonsor, PhD
F46: Developed by: | G46: Kevin C. Dhuyvetter, PhD
B101: Data/information used in formulas above -- do not delete!
B103: LRP coverage level | D103: LRP cost | L103: Price | M103: Price
B104: $/cwt | C104: -%- | D104: $/cwt | F104: Feeder cattle type | H104: Type | J104: Weight | K104: Factor | L104: Adj. | M104: Inc.
B105: =F34 -> 205.58 | C105: =B105/H$16 -> 0.8832653061 | D105: =IF(H34=0,"n/a",H34) -> n/a | F105: Steers | G105: Weight 1 | H105: =IF(H$9=F105,1,0) -> 1 | J105: =IF(H$6<L$115,1,0) -> 1 | K105: =H105*J105 -> 1 | L105: 1.1 | M105: 2.2
B106: =F33 -> 207.78 | C106: 0.8927175081 | D106: =IF(H33=0,"n/a",H33) -> n/a | F106: Steers | G106: Weight 2 | H106: 1 | J106: =IF(H$6>=L$115,1,0) -> 0 | K106: =H106*J106 -> 0 | L106: 1 | M106: 2
B107: =F32 -> 209.98 | C107: 0.90216971 | D107: =IF(H32=0,"n/a",H32) -> n/a | F107: Heifers | G107: Weight 1 | H107: 0 | J107: =IF(H$6<L$115,1,0) -> 1 | K107: 0 | L107: 1 | M107: 2
B108: =F31 -> 212.18 | C108: 0.9116219119 | D108: =IF(H31=0,"n/a",H31) -> 1.39 | F108: Heifers | G108: Weight 2 | H108: 0 | J108: =IF(H$6>=L$115,1,0) -> 0 | K108: 0 | L108: 0.9 | M108: 1.8
B109: =F30 -> 214.38 | C109: 0.9210741139 | D109: =IF(H30=0,"n/a",H30) -> 1.66 | F109: Braham | G109: Weight 1 | H109: 0 | J109: =IF(H$6<L$115,1,0) -> 1 | K109: 0 | L109: 1 | M109: 2
B110: =F29 -> 216.58 | C110: 0.9305263158 | D110: =IF(H29=0,"n/a",H29) -> 1.96 | F110: Braham | G110: Weigh 2 | H110: 0 | J110: =IF(H$6>=L$115,1,0) -> 0 | K110: 0 | L110: 0.9 | M110: 1.8
B111: =F28 -> 218.78 | C111: 0.9399785177 | D111: =IF(H28=0,"n/a",H28) -> 2.32 | F111: Dairy | G111: Weight 1 | H111: 0 | J111: =IF(H$6<L$115,1,0) -> 1 | K111: 0 | L111: 1 | M111: 1.7
B112: =F27 -> 220.98 | C112: 0.9494307197 | D112: =IF(H27=0,"n/a",H27) -> 2.74 | F112: Dairy | G112: Weight 2 | H112: 0 | J112: =IF(H$6>=L$115,1,0) -> 0 | K112: 0 | L112: 0.8 | M112: 1.6
B113: =F26 -> 223.18 | C113: 0.9588829216 | D113: =IF(H26=0,"n/a",H26) -> 3.49 | F113: LRP adjustment factor used in formulas | L113: =SUMPRODUCT(K105:K112,L105:L112) -> 1.1 | M113: =SUMPRODUCT(K105:K112,M105:M112) -> 2.2
B114: =F25 -> 225.38 | C114: 0.9683351235 | D114: =IF(H25=0,"n/a",H25) -> 4.06
B115: =F24 -> 227.58 | C115: 0.9777873255 | D115: =IF(H24=0,"n/a",H24) -> 4.71 | F115: Minimum weight for Wt2 | L115: 600
B116: =F23 -> 229.78 | C116: 0.9872395274 | D116: =IF(H23=0,"n/a",H23) -> 5.45 | F116: Maximum weight for Wt2 | L116: 900
B117: =F22 -> 231.98 | C117: 0.9966917293 | D117: =IF(H22=0,"n/a",H22) -> 6.26 | F117: Pounds per feeder cattle futures contract | L117: 50000

Sheet Futures-options
B2: Example screen from CME website showing prices for 2/11/2023 for feeder cattle futures contracts
B3: https://www.cmegroup.com/markets/agriculture/livestock/feeder-cattle.quotes.html
B39: Example screen from CME website showing option premiums for 2/11/2023 for OCT 2023 feeder cattle contract

Sheet LRP
B2: Example INPUT screen for LRP premiums | H2: https://public.rma.usda.gov/livestockreports/LRPReport.aspx
B51: Example OUTPUT screen for LRP premiums | I51: https://public.rma.usda.gov/livestockreports/LRPReport.aspx
B52: State | C52: County | D52: Endorsement Length | E52: Commodity | F52: Type | G52: Practice | H52: Crop Year | I52: Exp. End Value | J52: Coverage Price | K52: Coverage Level | L52: Rate | M52: Cost Per CWT | N52: Producer Premium Per CWT | O52: End Date | P52: Actual End Value
B53: 20 Kansas | C53: 998 All Counties | D53: 34 | E53: 0801 Feeder Cattle | F53: 809 Steers Weight 1 | G53: 310 Endorsement Ending in October Yr2 | H53: 2023 | I53: 232.75 | J53: 231.98 | K53: 0.9967 | L53: 0.041538 | M53: 9.636 | N53: 6.26 | O53: 2023-10-06
B54: 20 Kansas | C54: 998 All Counties | D54: 34 | E54: 0801 Feeder Cattle | F54: 809 Steers Weight 1 | G54: 310 Endorsement Ending in October Yr2 | H54: 2023 | I54: 232.75 | J54: 229.78 | K54: 0.9872 | L54: 0.036507 | M54: 8.389 | N54: 5.45 | O54: 2023-10-06
B55: 20 Kansas | C55: 998 All Counties | D55: 34 | E55: 0801 Feeder Cattle | F55: 809 Steers Weight 1 | G55: 310 Endorsement Ending in October Yr2 | H55: 2023 | I55: 232.75 | J55: 227.58 | K55: 0.9778 | L55: 0.031872 | M55: 7.253 | N55: 4.71 | O55: 2023-10-06
B56: 20 Kansas | C56: 998 All Counties | D56: 34 | E56: 0801 Feeder Cattle | F56: 809 Steers Weight 1 | G56: 310 Endorsement Ending in October Yr2 | H56: 2023 | I56: 232.75 | J56: 225.38 | K56: 0.9683 | L56: 0.027693 | M56: 6.241 | N56: 4.06 | O56: 2023-10-06
B57: 20 Kansas | C57: 998 All Counties | D57: 34 | E57: 0801 Feeder Cattle | F57: 809 Steers Weight 1 | G57: 310 Endorsement Ending in October Yr2 | H57: 2023 | I57: 232.75 | J57: 223.18 | K57: 0.9589 | L57: 0.024072 | M57: 5.372 | N57: 3.49 | O57: 2023-10-06
B58: 20 Kansas | C58: 998 All Counties | D58: 34 | E58: 0801 Feeder Cattle | F58: 809 Steers Weight 1 | G58: 310 Endorsement Ending in October Yr2 | H58: 2023 | I58: 232.75 | J58: 220.98 | K58: 0.9494 | L58: 0.020658 | M58: 4.565 | N58: 2.74 | O58: 2023-10-06
B59: 20 Kansas | C59: 998 All Counties | D59: 34 | E59: 0801 Feeder Cattle | F59: 809 Steers Weight 1 | G59: 310 Endorsement Ending in October Yr2 | H59: 2023 | I59: 232.75 | J59: 218.78 | K59: 0.94 | L59: 0.017683 | M59: 3.869 | N59: 2.32 | O59: 2023-10-06
B60: 20 Kansas | C60: 998 All Counties | D60: 34 | E60: 0801 Feeder Cattle | F60: 809 Steers Weight 1 | G60: 310 Endorsement Ending in October Yr2 | H60: 2023 | I60: 232.75 | J60: 216.58 | K60: 0.9305 | L60: 0.015085 | M60: 3.267 | N60: 1.96 | O60: 2023-10-06
B61: 20 Kansas | C61: 998 All Counties | D61: 34 | E61: 0801 Feeder Cattle | F61: 809 Steers Weight 1 | G61: 310 Endorsement Ending in October Yr2 | H61: 2023 | I61: 232.75 | J61: 214.38 | K61: 0.9211 | L61: 0.01293 | M61: 2.772 | N61: 1.66 | O61: 2023-10-06
B62: 20 Kansas | C62: 998 All Counties | D62: 34 | E62: 0801 Feeder Cattle | F62: 809 Steers Weight 1 | G62: 310 Endorsement Ending in October Yr2 | H62: 2023 | I62: 232.75 | J62: 212.18 | K62: 0.9116 | L62: 0.010882 | M62: 2.309 | N62: 1.39 | O62: 2023-10-06
B64: Notes:
B65: - Some endorsement lengths may not be available due to insufficient pricing or rating information.
B66: - For LRP Fed Cattle, Feeder Cattle and Swine, sales open from the time sales data is available (approximately 3:30 P.M. central time) until 9 A.M. central time the
B67: next day.
B68: - For Lamb, sales available MONDAY ONLY. Sales open from the time of official release of coverage prices and rates on Monday morning (approximately 10 A.M.
B69: central time) until 7 P.M. central time Monday.
B70: - For Lamb, preliminary coverage prices and rates may be available for viewing Friday evening and over the weekend but are subject to change at the official
B71: release time on Monday. Coverage prices and rates may also be available for viewing following sales during the week.
B72: - Purchase of LRP must be made through an authorized livestock insurance agent.
B73: - For LRP Fed Cattle, Feeder Cattle, and Swine, coverage levels and rates shown are available only on the selected effective date until 9 a.m. the following day.
B74: - For LRP Lamb, coverage levels and rates shown are available only on the selected effective date until 7 p.m.
B75: - For the Formatted Print option, Adobe Acrobat is required. For unformatted printing, use the File->Print option from your browser menu.
B76: - Use landscape mode when doing unformatted printing for best results.
